bitfinex/quotes_ETHUSD_20241104
["timestamp","ask_amount","ask_price","bid_price","bid_amount"]
[1730696054874,8.08614,2473.4,2472.9,4.59382]
[1730696055171,4.04304,2473.4,2473.2,0.28391166]
[1730696055419,5.16370909,2473.4,2472.9,4.59382]
[1730696055563,5.16370909,2473.4,2473.3,0.28378436]
[1730696055770,5.16370909,2473.4,2472.9,4.59372]
[1730696056066,4.04304,2473.4,2472.9,4.59372]
[1730696056286,4.04304,2473.4,2473.0,0.28416631]
[1730696056607,4.87116,2473.5,2473.0,0.18416631]
[1730696056815,4.04318,2473.3,2473.0,0.28070565]
[1730696057897,4.87116,2473.5,2473.0,0.28070565]
[1730696058099,4.04323,2473.3,2473.0,0.28070565]
[1730696058770,4.530146,2473.4,2473.0,0.28070565]
[1730696059383,8.573276,2473.4,2473.0,0.28070565]
[1730696060100,4.530146,2473.4,2473.0,0.28070565]
[1730696060418,4.04266,2473.7,2473.2,4.04318]
[1730696060700,4.04266,2473.7,2473.3,0.27112626]
[1730696060864,4.0427,2473.6,2473.3,0.27112626]
[1730696061064,4.0427,2473.6,2473.2,4.04318]
[1730696061384,4.0427,2473.6,2473.3,0.27112626]
[1730696061810,4.0427,2473.6,2473.2,4.04318]
[1730696062111,4.0427,2473.6,2473.3,0.27112626]
[1730696062493,4.0427,2473.6,2473.1,9.30808]
[1730696062800,4.0427,2473.6,2473.4,0.27099896]
[1730696063000,4.0427,2473.6,2473.1,9.30802]
[1730696063303,4.0427,2473.6,2473.1,10.40359536]
[1730696063506,4.84143,2473.5,2473.2,0.27125356]
[1730696066074,4.04293,2473.5,2473.3,0.6711]
[1730696066276,0.63300814,2473.6,2473.4,0.27099896]
[1730696066573,4.04253,2473.7,2473.4,0.27099896]
[1730696068811,4.04236,2473.8,2473.4,0.27099896]
[1730696074743,4.04255,2473.7,2473.4,0.27099896]
[1730696077612,5.15895527,2473.7,2473.4,0.27099896]
[1730696080539,1.11640527,2473.7,2473.4,0.27099896]
[1730696080765,4.04244,2473.8,2473.4,0.27099896]
[1730696080966,4.04244,2473.8,2473.4,4.31398896]
[1730696081955,5.47376911,2473.9,2473.5,0.55]
[1730696082263,5.47376911,2473.9,2473.6,0.2706956]
[1730696082560,9.51605911,2473.9,2473.6,0.2706956]
[1730696082730,9.23161427,2473.9,2473.6,0.2706956]
[1730696083138,5.18929427,2473.9,2473.6,0.2706956]
[1730696084044,4.04239,2473.8,2473.6,0.2706956]
[1730696086596,10.87936783,2473.9,2473.6,0.2706956]
[1730696086787,4.04236,2473.8,2473.6,0.2706956]
[1730696089368,6.83694783,2473.9,2473.6,0.2706956]
[1730696089683,0.63294911,2473.9,2473.6,0.2706956]
[1730696091476,4.67517911,2473.9,2473.6,0.2706956]
[1730696093128,0.63294911,2473.9,2473.6,0.2706956]
[1730696093288,0.63294911,2473.9,2473.7,0.6711]
[1730696093491,4.04194,2474.1,2473.8,0.27043298]
[1730696093724,4.04194,2474.1,2473.7,0.6711]
[1730696093928,4.04208,2474.0,2473.9,0.27030574]
[1730696094090,4.04208,2474.0,2473.8,0.27043298]
[1730696094290,4.04208,2474.0,2473.7,0.6711]
[1730696094512,4.04208,2474.0,2473.8,0.27043298]
[1730696094725,4.00590308,2474.0,2473.8,0.27043298]
[1730696094894,4.00590308,2474.0,2473.7,0.6711]
[1730696095094,4.04194,2474.1,2473.8,0.27043298]
[1730696095297,4.04194,2474.1,2473.7,0.6711]
[1730696095501,4.04194,2474.1,2473.8,0.27043298]
[1730696095831,4.04187,2474.1,2473.7,0.6711]
[1730696096002,8.08385,2474.1,2473.9,0.27030574]
[1730696096197,8.08385,2474.1,2473.8,0.27043298]
[1730696096405,4.04205,2474.0,2473.7,0.6711]
[1730696096593,4.04205,2474.0,2473.9,0.27030574]
[1730696096804,4.04205,2474.0,2473.8,0.27043298]
[1730696097014,4.04205,2474.0,2473.7,0.6711]
[1730696097325,4.04205,2474.0,2473.8,0.27043298]
[1730696097714,4.04207,2474.0,2473.7,0.6711]
[1730696098017,4.04207,2474.0,2473.9,0.27030574]
[1730696098618,4.04207,2474.0,2473.7,0.6711]
[1730696098828,4.04207,2474.0,2473.9,0.27028677]
[1730696099035,4.04207,2474.0,2473.8,0.27041402]
[1730696099187,4.04207,2474.0,2473.9,0.27028677]
[1730696099626,4.04207,2474.0,2473.7,0.6711]
[1730696099811,4.84814,2474.2,2473.9,0.27028677]
[1730696100013,4.04189,2474.1,2473.8,0.27041402]
[1730696100213,4.04189,2474.1,2474.0,0.27015954]
[1730696100412,4.8479,2474.4,2474.0,0.6711]
[1730696100651,4.04172,2474.2,2474.0,1.43961622]
[1730696100817,4.04172,2474.2,2474.0,0.94125954]
[1730696101557,4.04163,2474.3,2474.0,0.94125954]
[1730696102445,8.08333,2474.3,2474.0,0.94125954]
[1730696102651,4.04176,2474.2,2474.0,0.94125954]
[1730696103169,4.04163,2474.3,2474.0,0.94125954]
[1730696105678,4.04138,2474.4,2474.1,0.55]
[1730696105872,0.8064,2474.6,2474.1,0.55]
[1730696106082,4.67387407,2474.7,2474.3,1.2211]
[1730696106240,0.63289407,2474.7,2474.3,5.26256]
[1730696106440,4.67378407,2474.7,2474.4,0.26953016]
[1730696107239,0.63289407,2474.7,2474.5,0.6711]
[1730696107460,4.04073,2474.8,2474.5,0.6711]
[1730696107666,4.04073,2474.8,2474.6,0.26927581]
[1730696107874,4.8467,2475.1,2474.7,0.55]
[1730696108073,4.04048,2475.0,2474.7,1.2211]
[1730696108249,4.04048,2475.0,2474.8,0.26897818]
[1730696108455,4.04048,2475.0,2474.7,1.2211]
[1730696108673,4.04048,2475.0,2474.8,0.26894975]
[1730696108877,4.04025,2475.1,2474.8,0.26894975]
[1730696109060,4.04025,2475.1,2474.7,1.2211]
[1730696109371,4.04019,2475.2,2474.8,0.26883739]
[1730696109673,8.08038,2475.2,2474.7,6.192311]
[1730696110080,4.04019,2475.2,2474.8,0.26883739]
[1730696110280,7.12674303,2475.3,2474.8,4.04064]
[1730696110441,7.12674303,2475.3,2474.9,0.26871024]
[1730696110783,5.47900947,2475.3,2474.9,0.26871024]
[1730696111981,1.43907947,2475.3,2474.9,0.26871024]
[1730696112282,4.04008,2475.2,2474.9,0.26871024]
[1730696112457,4.04008,2475.2,2474.7,6.192211]
[1730696112666,4.04008,2475.2,2474.8,0.88805849]
[1730696112971,4.04008,2475.2,2474.8,4.92877849]
[1730696113153,4.04033,2475.1,2474.8,0.88805849]
[1730696113683,3.08681303,2475.3,2474.8,0.88805849]
[1730696113684,7.12674303,2475.3,2474.8,0.88805849]
[1730696113867,4.04024,2475.1,2474.9,0.61500185]
[1730696114181,4.04024,2475.1,2475.0,0.26854658]
[1730696114552,4.04024,2475.1,2474.7,1.2211]
[1730696114779,4.04024,2475.1,2475.0,0.26854658]
[1730696114985,4.04008,2475.2,2474.7,5.2619]
[1730696115178,4.04008,2475.2,2475.0,0.26854387]
[1730696115382,4.04008,2475.2,2474.7,5.2619]
[1730696115585,4.04008,2475.2,2475.1,0.26841675]
[1730696115758,4.04008,2475.2,2474.7,5.2619]
[1730696115956,4.04008,2475.2,2475.1,0.26841675]
[1730696116476,4.04008,2475.2,2474.7,5.34270952]
[1730696116684,4.04008,2475.2,2474.8,0.26879814]
[1730696116981,4.04008,2475.2,2474.8,0.95716581]
[1730696117184,4.04008,2475.2,2474.9,0.268671]
[1730696118660,4.04026,2475.1,2474.9,0.268671]
[1730696119063,4.04008,2475.2,2474.9,0.268671]
[1730696119963,0.8064,2475.3,2475.0,0.6711]
[1730696120285,8.07974,2475.4,2475.0,0.6711]
[1730696120477,4.04001,2475.3,2475.1,0.26836532]
[1730696121507,5.47023887,2475.5,2475.1,0.26836532]
[1730696121804,5.47023887,2475.5,2475.1,5.2187056]
[1730696121805,4.67223887,2475.5,2475.1,5.2187056]
[1730696122106,4.03936,2475.7,2475.2,5.26102]
[1730696122395,4.03936,2475.7,2475.3,1.32414882]
[1730696122554,4.03936,2475.7,2475.3,5.36405882]
[1730696123757,4.03918,2475.8,2475.4,4.58974]
[1730696123961,6.48477356,2475.9,2475.4,0.55]
[1730696124292,4.0391,2475.8,2475.5,0.26781635]
[1730696124502,4.03928,2475.7,2475.5,0.26781635]
[1730696127595,4.0391,2475.8,2475.6,0.55]
[1730696127757,4.0391,2475.8,2475.6,0.45]
[1730696127962,4.0391,2475.8,2475.7,0.26753652]
[1730696147188,4.0391,2475.8,2475.7,0.16753652]
[1730696147402,4.0391,2475.8,2475.7,0.26409364]
[1730696149526,5.15472483,2475.8,2475.7,0.26409364]
[1730696151799,5.92182483,2475.8,2475.7,0.26409364]
[1730696152432,4.03958,2475.6,2475.4,0.55]
[1730696154831,4.03958,2475.6,2475.5,0.26434236]
[1730696164222,4.03932,2475.7,2475.5,0.26434236]
[1730696164582,8.07872,2475.7,2475.5,0.26434236]
[1730696165218,4.03932,2475.7,2475.5,0.26434236]
[1730696165742,8.07871,2475.7,2475.5,0.26434236]
[1730696167749,4.03932,2475.7,2475.5,0.26434236]
[1730696168221,8.07866,2475.7,2475.5,0.26434236]
[1730696170156,4.03932,2475.7,2475.5,0.26434236]
[1730696170533,5.68680356,2475.9,2475.5,0.26434236]
[1730696171625,4.03934,2475.7,2475.5,0.26434236]
[1730696172536,8.07872,2475.7,2475.5,0.26434236]
[1730696172735,4.03934,2475.7,2475.5,0.26434236]
[1730696173263,8.0787,2475.7,2475.5,0.26434236]
[1730696173449,8.07872,2475.7,2475.5,0.26434236]
[1730696174171,4.80822,2475.6,2475.5,0.26434236]
[1730696174464,4.80822,2475.6,2475.1,8.1611]
[1730696174465,4.80822,2475.6,2475.2,1.03091232]
[1730696174619,4.03942,2475.6,2475.5,0.26431803]
[1730696174817,4.03934,2475.7,2475.4,0.6711]
[1730696175045,8.07872,2475.7,2475.5,0.26431938]
[1730696175623,4.03934,2475.7,2475.5,0.26431938]
[1730696175825,4.03942,2475.6,2475.5,0.26431938]
[1730696177924,4.03961,2475.5,2475.2,0.55]
[1730696178124,4.03961,2475.5,2475.3,0.30323051]
[1730696178344,4.03961,2475.5,2475.2,0.55]
[1730696178554,4.03961,2475.5,2475.3,0.30322538]
[1730696178746,4.03961,2475.5,2475.2,0.55]
[1730696178951,4.03961,2475.5,2475.3,0.30322674]
[1730696179158,4.03961,2475.5,2475.2,0.55]
[1730696179369,4.03961,2475.5,2475.3,0.30322252]
[1730696179582,4.03961,2475.5,2475.2,0.55]
[1730696179880,4.03961,2475.5,2475.3,0.30322545]
[1730696180041,4.03945,2475.6,2475.2,0.55]
[1730696180244,4.03945,2475.6,2475.3,0.30322716]
[1730696180563,4.03945,2475.6,2475.2,0.55]
[1730696180885,4.03945,2475.6,2475.3,0.30322239]
[1730696181242,4.03945,2475.6,2475.2,0.55]
[1730696181447,4.03945,2475.6,2475.3,0.30321991]
[1730696181676,4.03945,2475.6,2475.2,0.55]
[1730696181858,4.0396,2475.5,2475.3,0.30322544]
[1730696182060,4.0396,2475.5,2475.2,0.55]
[1730696182288,4.0396,2475.5,2475.3,0.30322266]
[1730696182451,4.0396,2475.5,2475.2,0.55]
[1730696182790,4.03945,2475.6,2475.4,0.26444241]
[1730696182997,4.03958,2475.5,2475.3,0.2645695]
[1730696183174,4.03943,2475.6,2475.2,0.55]
[1730696183343,4.03943,2475.6,2475.3,0.30322168]
[1730696183549,4.03961,2475.5,2475.2,0.55]
[1730696183749,4.83661,2475.5,2475.3,0.30322617]
[1730696183987,4.83661,2475.5,2475.2,0.55]
[1730696184191,4.83661,2475.5,2475.3,0.30322531]
[1730696184384,4.83661,2475.5,2475.2,0.55]
[1730696184586,4.83661,2475.5,2475.3,0.30322165]
[1730696184882,4.83661,2475.5,2475.2,0.55]
[1730696185392,4.83661,2475.5,2475.3,0.30322455]
[1730696185562,4.83661,2475.5,2475.2,0.55]
[1730696185775,4.83661,2475.5,2475.3,0.30322449]
[1730696186076,4.83661,2475.5,2475.2,0.55]
[1730696186273,4.83661,2475.5,2475.3,0.30322815]
[1730696186458,4.83661,2475.5,2475.2,0.55]
[1730696186665,4.83661,2475.5,2475.3,0.3032252]
[1730696186965,0.797,2475.4,2474.9,0.5711]
[1730696187151,0.797,2475.4,2474.8,8.33401584]
[1730696187152,4.04048,2475.0,2474.8,7.49]
[1730696187352,4.04048,2475.0,2474.9,0.30316324]
[1730696187546,4.04048,2475.0,2474.7,0.5711]
[1730696188312,6.48504356,2475.1,2474.8,0.55]
[1730696188502,4.04002,2475.3,2474.8,0.55]
[1730696188503,4.04002,2475.3,2474.9,0.5711]
[1730696188651,4.04002,2475.3,2475.0,0.55]
[1730696192798,8.08003,2475.3,2475.0,0.55]
[1730696193306,4.04011,2475.2,2475.0,0.55]
[1730696194299,4.04001,2475.3,2475.0,0.55]
[1730696194468,8.08004,2475.3,2475.0,0.55]
[1730696195183,4.04008,2475.2,2475.0,0.55]
[1730696197676,4.04008,2475.2,2475.1,0.81486969]
[1730696201889,4.04008,2475.2,2475.1,0.26486969]
[1730696201890,5.640089,2475.2,2475.1,0.26486969]
[1730696202077,5.640089,2475.2,2474.5,0.5711]
[1730696202078,4.04095,2474.7,2474.5,0.5711]
[1730696202474,4.04095,2474.7,2474.6,0.26550831]
[1730696203614,4.04074,2474.8,2474.6,0.26550831]
[1730696204413,8.08158,2474.8,2474.6,0.26550831]
[1730696204584,4.04089,2474.7,2474.6,0.81550831]
[1730696205575,4.04059,2474.9,2474.6,0.81550831]
[1730696205779,4.04073,2474.8,2474.6,0.81550831]
[1730696206881,4.04089,2474.7,2474.6,0.81550831]
[1730696207719,4.04074,2474.8,2474.6,0.81550831]
[1730696210733,0.792,2475.2,2474.8,0.5711]
[1730696210895,4.04007,2475.2,2474.9,0.55]
[1730696211213,4.04007,2475.2,2474.9,0.81179352]
[1730696211413,5.68764356,2475.3,2474.9,0.81179352]
[1730696211617,4.04026,2475.1,2474.9,0.81179352]
[1730696213720,1.64773356,2475.3,2474.9,0.81179352]
[1730696213895,4.04032,2475.1,2474.9,0.81179352]
[1730696218224,4.04007,2475.2,2474.9,0.81179352]
[1730696218428,4.04017,2475.2,2474.9,0.81179352]
[1730696218599,4.03998,2475.3,2474.9,0.81179352]
[1730696219114,8.07998,2475.3,2474.9,0.81179352]
[1730696219324,4.03998,2475.3,2474.9,0.81179352]
[1730696219483,4.8324,2475.0,2474.9,0.81179352]
[1730696219825,4.8324,2475.0,2474.9,0.26179352]
[1730696220013,4.0408,2474.8,2474.4,0.5711]
[1730696220386,4.0408,2474.8,2474.5,0.26230036]
[1730696220587,4.0408,2474.8,2474.5,0.16230036]
[1730696221002,4.0408,2474.8,2474.6,0.55]
[1730696221491,4.0408,2474.8,2474.7,0.2587127]
[1730696223423,5.1561778,2474.8,2474.7,0.2587127]
[1730696226211,5.1561778,2474.8,2474.4,0.5711]
[1730696226411,4.04109,2474.6,2474.5,0.55]
[1730696226589,4.04109,2474.6,2474.5,0.80899544]
[1730696228024,5.1561778,2474.8,2474.5,0.80899544]
[1730696228742,4.04105,2474.6,2474.5,0.80899544]
[1730696229203,4.04105,2474.6,2474.5,0.25899544]
[1730696229204,4.82615,2474.6,2474.5,0.25899544]
[1730696229406,5.74587278,2474.6,2474.1,0.87384603]
[1730696229606,4.04129,2474.5,2474.2,0.80937702]
[1730696232731,4.04129,2474.5,2474.2,0.70937702]
[1730696236105,6.47437356,2474.3,2474.2,0.25937702]
[1730696236622,4.04213,2474.0,2473.6,0.30266786]
[1730696236824,4.82723,2474.0,2473.6,0.30266786]
[1730696237030,4.04227,2473.9,2473.7,0.25122417]
[1730696237555,4.04227,2473.9,2473.5,4.91660786]
[1730696237746,4.04227,2473.9,2473.8,0.80109692]
[1730696237910,4.04227,2473.9,2473.8,0.55]
[1730696238110,4.04227,2473.9,2473.8,0.80109692]
[1730696238539,4.04227,2473.9,2473.8,0.25109692]
[1730696238927,4.04227,2473.9,2473.5,0.5711]
[1730696239544,4.04227,2473.9,2473.6,0.25135144]
[1730696239761,4.04227,2473.9,2473.7,0.55]
[1730696240047,4.04227,2473.9,2473.8,0.25109692]
[1730696240245,4.04227,2473.9,2473.6,0.55]
[1730696240456,4.04227,2473.9,2473.7,0.25122417]
[1730696242525,5.09399336,2473.9,2473.7,0.25122417]
[1730696244216,4.82723,2474.0,2473.7,0.25006152]
[1730696244416,4.04213,2474.0,2473.7,0.25006152]
[1730696245740,8.08427,2474.0,2473.7,0.25006152]
[1730696245946,4.04221,2473.9,2473.7,0.25006152]
[1730696246856,4.04213,2474.0,2473.7,0.25006152]
[1730696247726,8.0843,2474.0,2473.7,0.25006152]
[1730696248665,4.04213,2474.0,2473.7,0.25006152]
[1730696250042,8.08429,2474.0,2473.7,0.25006152]
[1730696250888,6.46205356,2474.1,2473.8,0.55]
[1730696251234,6.46205356,2474.1,2473.9,0.25101005]
[1730696252161,4.04203,2474.0,2473.9,0.25101005]
[1730696256962,4.04203,2474.0,2473.9,0.15101005]
[1730696257151,4.04203,2474.0,2473.9,0.24776507]
[1730696259852,5.09242336,2474.0,2473.9,0.24776507]
[1730696260048,5.09242336,2474.0,2473.6,0.5711]
[1730696260249,4.04223,2473.9,2473.7,0.79802483]
[1730696268996,6.46195356,2474.1,2473.7,0.79802483]
[1730696269367,10.50391356,2474.1,2473.7,0.79802483]
[1730696270555,4.04205,2474.0,2473.7,0.79802483]
[1730696275865,4.04224,2473.9,2473.7,0.79802483]
[1730696276365,5.68997356,2473.9,2473.7,0.79802483]
[1730696277203,4.04236,2473.8,2473.7,0.79802483]
[1730696277405,5.68994356,2473.9,2473.7,0.79802483]
[1730696277712,6.74037292,2473.9,2473.7,0.79802483]
[1730696279028,6.48409356,2473.8,2473.7,0.24802483]
[1730696279505,0.794,2473.8,2473.2,0.5711]
[1730696279822,0.794,2473.8,2473.4,0.5711]
[1730696279823,4.04238,2473.8,2473.4,0.5711]
[1730696279976,4.04238,2473.8,2473.4,4.61409]
[1730696280178,1.72859749,2473.9,2473.4,5.47789539]
[1730696280506,5.77079749,2473.9,2473.5,0.55]
[1730696282224,4.04236,2473.8,2473.5,0.55]
[1730696282403,1.72859749,2473.9,2473.5,0.55]
[1730696282806,1.72859749,2473.9,2473.5,4.59284]
[1730696283121,1.64773356,2473.9,2473.6,0.30328661]
[1730696283285,4.83615,2474.0,2473.7,1.1211]
[1730696283616,8.08428,2474.0,2473.7,1.1211]
[1730696283920,4.04213,2474.0,2473.7,1.1211]
[1730696284120,4.12299393,2474.0,2473.7,1.1211]
[1730696284587,8.16511393,2474.0,2473.7,1.1211]
[1730696284793,4.04212,2474.0,2473.7,1.1211]
[1730696284981,4.0422,2473.9,2473.7,1.1211]
[1730696285626,4.04212,2474.0,2473.7,1.1211]
[1730696285942,4.12298393,2474.0,2473.7,1.1211]
[1730696286132,4.83579,2474.2,2473.7,6.084262]
[1730696286289,4.12265393,2474.2,2473.8,0.30327609]
[1730696286488,4.12265393,2474.2,2473.7,5.16351]
[1730696286695,8.16447393,2474.2,2473.8,0.30327576]
[1730696286911,4.04188,2474.1,2473.7,5.16351]
[1730696287233,4.04188,2474.1,2473.8,0.30327698]
[1730696287404,4.04188,2474.1,2473.7,6.16879772]
[1730696287605,4.04188,2474.1,2473.9,0.23826268]
[1730696287789,4.04188,2474.1,2473.8,0.23838333]
[1730696288094,4.04188,2474.1,2473.9,0.23823894]
[1730696288519,4.04188,2474.1,2473.7,6.16879772]
[1730696288724,4.04188,2474.1,2474.0,0.2381117]
[1730696289029,4.04188,2474.1,2473.7,5.16351]
[1730696289205,4.04188,2474.1,2474.0,0.2381117]
[1730696289406,4.04188,2474.1,2473.8,0.30327075]
[1730696289724,4.04187,2474.1,2473.9,0.23823894]
[1730696290022,4.04203,2474.0,2473.9,0.23823894]
[1730696290225,4.04187,2474.1,2473.9,0.23823894]
[1730696290722,4.04187,2474.1,2474.0,0.23810642]
[1730696291094,4.04187,2474.1,2473.7,1.1211]
[1730696291296,4.04187,2474.1,2474.0,0.23810642]
[1730696291631,4.04187,2474.1,2473.7,1.1211]
[1730696291795,4.04187,2474.1,2474.0,0.23810642]
[1730696291997,4.04187,2474.1,2473.7,1.1211]
[1730696292216,4.04187,2474.1,2474.0,0.23810642]
[1730696292419,4.12257393,2474.2,2473.7,9.20602]
[1730696292639,4.12257393,2474.2,2474.0,0.23810642]
[1730696292951,4.12257393,2474.2,2474.1,0.2379792]
[1730696293315,4.04191,2474.1,2473.7,5.1635]
[1730696293515,4.04171,2474.2,2473.7,5.1635]
[1730696293745,8.08352,2474.2,2473.7,5.1635]
[1730696294171,4.04189,2474.1,2473.8,0.30324395]
[1730696294330,4.04189,2474.1,2473.9,0.55]
[1730696294653,4.04189,2474.1,2473.7,5.1635]
[1730696294839,4.04189,2474.1,2473.9,0.55]
[1730696295159,4.04189,2474.1,2473.8,0.55]
[1730696295160,4.04203,2474.0,2473.8,0.55]
[1730696295651,6.46261356,2474.1,2473.8,0.55]
[1730696296683,4.04188,2474.1,2473.8,0.55]
[1730696296958,4.04172,2474.2,2473.8,1.066361]
[1730696298479,6.46229356,2474.3,2473.8,1.066361]
[1730696298480,6.46229356,2474.3,2473.8,5.108651]
[1730696298757,10.58482749,2474.3,2474.0,0.55]
[1730696299062,4.04176,2474.2,2474.0,0.55]
[1730696300134,4.04187,2474.1,2474.0,0.55]
[1730696300527,4.04173,2474.2,2474.0,0.55]
[1730696301151,8.08353,2474.2,2474.0,0.55]
[1730696301571,4.04173,2474.2,2474.0,0.55]
[1730696301868,4.04187,2474.1,2474.0,0.55]
[1730696302577,4.04187,2474.1,2474.0,0.78806553]
[1730696303384,4.04173,2474.2,2474.0,0.78806553]
[1730696303858,2.50159749,2474.3,2474.0,0.78806553]
[1730696304060,4.04179,2474.2,2474.0,0.78806553]
[1730696304255,4.04187,2474.1,2474.0,0.78806553]
[1730696305176,6.47260356,2474.1,2474.0,0.23806553]
[1730696305334,6.55346749,2474.1,2474.0,0.23806553]
[1730696305534,4.04224,2473.9,2473.8,0.55]
[1730696306136,4.04224,2473.9,2473.8,0.45]
[1730696308591,4.04224,2473.9,2473.7,0.55]
[1730696308891,4.04224,2473.9,2473.6,0.55]
[1730696309092,4.04224,2473.9,2473.8,0.55]
[1730696309566,4.82544,2473.8,2473.6,0.72763549]
[1730696309770,4.82544,2473.8,2473.4,0.55]
[1730696309976,4.82544,2473.8,2473.6,0.55]
[1730696310188,4.82544,2473.8,2473.4,0.55]
[1730696310389,0.783,2473.8,2473.6,0.55]
[1730696310695,0.783,2473.8,2473.5,0.55]
[1730696311024,0.783,2473.8,2473.6,0.30323295]
[1730696311196,0.783,2473.8,2473.5,0.55]
[1730696311374,0.783,2473.8,2473.6,0.30323165]
[1730696311375,4.82547,2473.8,2473.6,0.30323165]
[1730696311560,4.82547,2473.8,2473.4,4.59301]
[1730696311764,4.82547,2473.8,2473.6,0.55]
[1730696311975,4.82547,2473.8,2473.4,6.34740772]
[1730696312181,4.82547,2473.8,2473.6,0.55]
[1730696312587,4.82547,2473.8,2473.5,0.55]
[1730696312890,4.82547,2473.8,2473.6,0.30322673]
[1730696313089,4.82547,2473.8,2473.5,0.55]
[1730696313391,4.82547,2473.8,2473.6,0.30322259]
[1730696313596,4.82547,2473.8,2473.5,0.55]
[1730696313751,4.82547,2473.8,2473.6,0.30321888]
[1730696313951,4.82547,2473.8,2473.5,0.72763143]
[1730696314182,4.82547,2473.8,2473.6,0.30322209]
[1730696314385,4.82547,2473.8,2473.5,0.55]
[1730696314552,0.783,2474.0,2473.7,0.55]
[1730696314755,4.04179,2474.2,2473.7,4.59237]
[1730696314960,8.08364,2474.2,2473.7,4.59237]
[1730696315194,8.08363,2474.2,2473.7,4.59237]
[1730696315399,4.0419,2474.1,2473.7,4.59237]
[1730696315693,4.04179,2474.2,2473.7,5.108717]
[1730696315905,4.12265393,2474.2,2473.7,5.108717]
[1730696316086,8.16447393,2474.2,2473.7,5.108717]
[1730696316262,4.04179,2474.2,2473.8,4.04233]
[1730696316593,4.12265393,2474.2,2473.9,0.55]
[1730696316798,8.16445393,2474.2,2473.9,0.55]
[1730696317001,8.08359,2474.2,2473.9,0.55]
[1730696317173,8.08359,2474.2,2473.8,0.55]
[1730696317363,4.04179,2474.2,2473.8,0.55]
[1730696317563,4.04179,2474.2,2473.9,0.23818748]
[1730696317880,8.08361,2474.2,2473.9,0.23818748]
[1730696318884,4.04179,2474.2,2473.9,0.23818748]
[1730696319100,8.16447393,2474.2,2473.9,0.23818748]
[1730696319391,4.04179,2474.2,2473.9,0.23818748]
[1730696319890,8.08362,2474.2,2473.9,0.23818748]
[1730696320403,4.04188,2474.1,2473.9,0.23818748]
[1730696320896,4.04173,2474.2,2473.9,0.23818748]
[1730696321287,8.08358,2474.2,2473.9,0.23818748]
[1730696321783,4.04173,2474.2,2473.9,0.23818748]
[1730696322605,4.04187,2474.1,2473.9,0.23818748]
[1730696322807,4.04173,2474.2,2473.9,0.23818748]
[1730696322963,4.12259393,2474.2,2473.9,0.23818748]
[1730696323385,4.04173,2474.2,2473.9,0.23818748]
[1730696323601,4.04188,2474.1,2473.9,0.23818748]
[1730696328207,0.08086393,2474.2,2473.9,0.23818748]
[1730696328387,10.51399356,2474.3,2473.9,0.23818748]
[1730696328388,0.783,2474.3,2474.0,0.55]
[1730696328566,5.68907356,2474.5,2474.0,0.78806685]
[1730696328567,4.12226393,2474.4,2474.0,0.78806685]
[1730696328769,6.49247356,2474.5,2474.0,1.73240554]
[1730696328971,6.49247356,2474.5,2474.2,0.55]
[1730696329390,6.49247356,2474.5,2474.3,0.23768258]
[1730696329574,2.45113356,2474.5,2474.3,0.23768258]
[1730696330315,6.49244356,2474.5,2474.3,0.23768258]
[1730696330670,6.57330749,2474.5,2474.3,0.23768258]
[1730696331610,2.53199749,2474.5,2474.3,0.23768258]
[1730696331770,4.04138,2474.4,2474.3,0.23768258]
[1730696333705,6.57322749,2474.5,2474.3,0.23768258]
[1730696341983,10.61458749,2474.5,2474.3,0.23768258]
[1730696342190,11.59518231,2474.5,2474.3,0.23768258]
[1730696342389,7.55382231,2474.5,2474.3,0.23768258]
[1730696342580,4.12224393,2474.4,2474.3,0.23768258]
[1730696342926,4.04138,2474.4,2474.3,0.23768258]
[1730696343409,7.55382231,2474.5,2474.3,0.23768258]
[1730696346329,6.49236356,2474.5,2474.3,0.23768258]
[1730696348117,10.53373356,2474.5,2474.3,0.23768258]
[1730696348275,0.08086393,2474.4,2474.3,0.23768258]
[1730696348616,4.12224393,2474.4,2474.3,0.23768258]
[1730696349316,4.89704393,2474.4,2474.3,0.23768258]
[1730696349522,1.91426468,2474.4,2474.3,0.23768258]
[1730696349721,1.91426468,2474.4,2474.0,4.04193]
[1730696350015,0.85566393,2474.4,2474.0,4.04193]
[1730696350207,0.85566393,2474.4,2474.1,0.23452318]
[1730696355135,1.64773356,2474.5,2474.2,0.55]
[1730696355616,5.68896356,2474.5,2474.3,0.23428196]
[1730696357335,9.73029356,2474.5,2474.3,0.23428196]
[1730696357506,5.95563968,2474.4,2474.3,0.23428196]
[1730696357826,1.91425968,2474.4,2474.0,0.55]
[1730696358003,5.68927356,2474.3,2474.0,0.55]
[1730696358390,5.68927356,2474.3,2473.9,0.55]
[1730696358590,1.64773356,2474.3,2473.9,4.59209]
[1730696360215,1.64773356,2474.3,2473.9,4.49209]
[1730696360587,5.68928356,2474.3,2473.9,4.49209]
[1730696362529,1.64773356,2474.3,2473.9,4.49209]
[1730696362736,1.64773356,2474.3,2474.1,0.55]
[1730696363096,1.64773356,2474.3,2474.2,0.23442631]
[1730696366957,1.64773356,2474.3,2474.2,0.23443291]
[1730696367162,1.64773356,2474.3,2474.0,4.042]
[1730696367374,1.64773356,2474.3,2474.1,0.23456012]
[1730696367579,1.64773356,2474.3,2474.0,0.55]
[1730696367780,1.72859749,2474.3,2474.1,0.23456012]
[1730696368309,6.29917002,2474.3,2474.1,0.23456012]
[1730696368508,4.84241,2474.2,2474.1,0.23456012]
[1730696368712,4.84241,2474.2,2473.7,1.78064624]
[1730696369011,1.64773356,2474.1,2473.9,0.55]
[1730696369302,1.64773356,2474.1,2473.8,0.55]
[1730696369507,1.64773356,2474.1,2473.7,5.64546117]
[1730696369669,1.64773356,2474.1,2473.9,0.55]
[1730696370077,1.72859749,2474.1,2473.8,0.55]
[1730696371003,1.64773356,2474.1,2473.8,0.55]
[1730696371300,1.64773356,2474.1,2473.9,0.30322978]
[1730696371507,1.64773356,2474.1,2473.8,0.55]
[1730696372609,1.64773356,2474.1,2473.9,0.3032464]